[Event "RUS-ch Blitz 2021"]
[Site "Sochi"]
[Date "2021.10.11"]
[Round "2.22"]
[White "Nuristani, Iman"]
[Black "Bocharov, Dmitry"]
[Result "0-1"]
[ECO "D01"]
[WhiteElo "2171"]
[BlackElo "2517"]
[Annotator "ChessBase"]
[PlyCount "94"]
[EventDate "2021.10.11"]
[EventType "blitz"]
[EventCountry "RUS"]
[SourceTitle "playchess.com"]
[Source "ChessBase"]
[SourceQuality "1"]
[TimeControl "180+2"]

1. d4 {[%emt 0:00:00]} Nf6 {[%emt 0:00:00]} 2. Bg5 {[%emt 0:00:02]} d5 {
[%emt 0:00:14]} 3. Bxf6 {[%emt 0:00:02]} gxf6 {[%emt 0:00:00]} 4. e3 {[%emt 0:
00:11]} c5 {[%emt 0:00:04]} 5. Nc3 {[%emt 0:00:09]} Nc6 {[%emt 0:00:00]} 6. a3
{[%emt 0:00:43]} cxd4 {[%emt 0:00:24]} 7. exd4 {[%emt 0:00:02]} Bf5 {[%emt 0:
00:05]} 8. Bd3 {[%emt 0:00:19]} Bg6 {[%emt 0:00:09]} 9. Nge2 {[%emt 0:00:00]}
e6 {[%emt 0:00:03]} 10. h4 {[%emt 0:00:05]} Bd6 {[%emt 0:00:03]} 11. h5 {
[%emt 0:00:08]} Bxd3 {[%emt 0:00:06]} 12. Qxd3 {[%emt 0:00:00]} f5 {[%emt 0:00:
12]} 13. g3 {[%emt 0:00:26]} a6 {[%emt 0:00:23]} 14. Nd1 {[%emt 0:00:01]} Qc7 {
[%emt 0:00:08]} 15. Ne3 {[%emt 0:00:02]} O-O-O {[%emt 0:00:04]} 16. O-O-O {
[%emt 0:00:09]} Kb8 {[%emt 0:00:00]} 17. Kb1 {[%emt 0:00:00]} Rc8 {[%emt 0:00:
00]} 18. c4 {[%emt 0:00:14]} dxc4 {[%emt 0:00:15]} 19. Nxc4 {[%emt 0:00:06]}
Nb4 {[%emt 0:00:07]} 20. axb4 {[%emt 0:00:07]} Qxc4 {[%emt 0:00:00]} 21. d5 {
[%emt 0:00:18]} e5 {[%emt 0:00:30]} 22. Rh4 {[%emt 0:00:27]} Qxd3+ {[%emt 0:00:
22]} 23. Rxd3 {[%emt 0:00:04]} Rhg8 {[%emt 0:00:01]} 24. Rf3 {[%emt 0:00:01]}
Rg5 {[%emt 0:00:04]} 25. Re3 {[%emt 0:00:02]} f6 {[%emt 0:00:05]} 26. Rc3 {
[%emt 0:00:13]} Rd8 {[%emt 0:00:11]} 27. Ka2 {[%emt 0:00:00]} Rgg8 {[%emt 0:00:
04]} 28. Rf3 {[%emt 0:00:03]} Rg5 {[%emt 0:00:00]} 29. Ng1 {[%emt 0:00:00]} e4
{[%emt 0:00:08]} 30. Rb3 {[%emt 0:00:00]} Be5 {[%emt 0:00:03]} 31. f4 {[%emt 0:
00:07]} exf3 {[%emt 0:00:00]} 32. Rxf3 {[%emt 0:00:03]} Bxg3 {[%emt 0:00:00]}
33. Rd4 {[%emt 0:00:02]} Be5 {[%emt 0:00:04]} 34. Rd1 {[%emt 0:00:02]} Rg2 {
[%emt 0:00:02]} 35. Nh3 {[%emt 0:00:01]} Rxb2+ {[%emt 0:00:00]} 36. Ka3 {
[%emt 0:00:03]} Rh2 {[%emt 0:00:04]} 37. Nf2 {[%emt 0:00:00]} Rxh5 {[%emt 0:00:
00]} 38. Nd3 {[%emt 0:00:01]} Bd6 {[%emt 0:00:06]} 39. Nb2 {[%emt 0:00:05]} Rh4
{[%emt 0:00:03]} 40. Nd3 {[%emt 0:00:00]} Rd4 {[%emt 0:00:00]} 41. Rxf5 {
[%emt 0:00:03]} Bxb4+ {[%emt 0:00:03]} 42. Kb3 {[%emt 0:00:02]} Be7 {[%emt 0:
00:02]} 43. Kc3 {[%emt 0:00:01]} R4xd5 {[%emt 0:00:00]} 44. Rf3 {[%emt 0:00:01]
} Bd6 {[%emt 0:00:06]} 45. Kc4 {[%emt 0:00:03]} Be5 {[%emt 0:00:00]} 46. Rb1 {
[%emt 0:00:02]} Rd4+ {[%emt 0:00:01]} 47. Kc3 {[%emt 0:00:01]} Rxd3+ {[%emt 0:
00:04]} 0-1

[Event "RUS-ch Blitz 2021"]
[Site "Sochi"]
[Date "2021.10.11"]
[Round "2.23"]
[White "Demidov, Mikhail"]
[Black "Babanin, Gleb"]
[Result "1/2-1/2"]
[ECO "A13"]
[WhiteElo "2551"]
[BlackElo "2094"]
[Annotator "ChessBase"]
[PlyCount "122"]
[EventDate "2021.10.11"]
[EventType "blitz"]
[EventCountry "RUS"]
[SourceTitle "playchess.com"]
[Source "ChessBase"]
[SourceQuality "1"]
[TimeControl "180+2"]

1. Nf3 {[%emt 0:00:00]} Nf6 {[%emt 0:00:04]} 2. g3 {[%emt 0:00:04]} e6 {
[%emt 0:00:03]} 3. Bg2 {[%emt 0:00:00]} d5 {[%emt 0:00:04]} 4. O-O {[%emt 0:00:
00]} c5 {[%emt 0:00:00]} 5. c4 {[%emt 0:00:10]} d4 {[%emt 0:00:07]} 6. e3 {
[%emt 0:00:13]} Nc6 {[%emt 0:00:01]} 7. exd4 {[%emt 0:00:00]} cxd4 {[%emt 0:00:
00]} 8. Re1 {[%emt 0:00:07]} Bd6 {[%emt 0:00:00]} 9. Na3 {[%emt 0:00:07]} O-O {
[%emt 0:00:06]} 10. Nc2 {[%emt 0:00:20]} e5 {[%emt 0:00:17]} 11. d3 {[%emt 0:
00:00]} Re8 {[%emt 0:00:18]} 12. Bg5 {[%emt 0:00:05]} Bf5 {[%emt 0:00:16]} 13.
Rb1 {[%emt 0:00:28]} a5 {[%emt 0:00:08]} 14. a3 {[%emt 0:00:00]} h6 {[%emt 0:
00:26]} 15. Bxf6 {[%emt 0:00:06]} Qxf6 {[%emt 0:00:00]} 16. Nh4 {[%emt 0:00:07]
} Bd7 {[%emt 0:00:29]} 17. b4 {[%emt 0:00:08]} axb4 {[%emt 0:00:00]} 18. axb4 {
[%emt 0:00:00]} g5 {[%emt 0:00:14]} 19. Nf3 {[%emt 0:00:05]} Bg4 {[%emt 0:00:
06]} 20. c5 {[%emt 0:00:39]} Bf8 {[%emt 0:00:13]} 21. h3 {[%emt 0:00:04]} Bh5 {
[%emt 0:00:00]} 22. Rb2 {[%emt 0:00:19]} e4 {[%emt 0:00:27]} 23. dxe4 {[%emt 0:
00:24]} d3 {[%emt 0:00:00]} 24. Rb3 {[%emt 0:00:13]} dxc2 {[%emt 0:00:06]} 25.
Qxc2 {[%emt 0:00:00]} Ra1 {[%emt 0:00:17]} 26. Rxa1 {[%emt 0:00:09]} Qxa1+ {
[%emt 0:00:00]} 27. Rb1 {[%emt 0:00:00]} Qa3 {[%emt 0:00:05]} 28. Rb3 {[%emt 0:
00:07]} Qa1+ {[%emt 0:00:00]} 29. Rb1 {[%emt 0:00:00]} Qf6 {[%emt 0:00:00]} 30.
Nh2 {[%emt 0:00:00]} Nd4 {[%emt 0:00:07]} 31. Qb2 {[%emt 0:00:06]} Ne2+ {
[%emt 0:00:00]} 32. Kf1 {[%emt 0:00:02]} Nxg3+ {[%emt 0:00:00]} 33. Kg1 {
[%emt 0:00:00]} Qxb2 {[%emt 0:00:04]} 34. Rxb2 {[%emt 0:00:00]} Nxe4 {[%emt 0:
00:03]} 35. Ng4 {[%emt 0:00:00]} Bg7 {[%emt 0:00:04]} 36. Rb1 {[%emt 0:00:07]}
f5 {[%emt 0:00:00]} 37. Ne3 {[%emt 0:00:00]} Nxf2 {[%emt 0:00:08]} 38. Nxf5 {
[%emt 0:00:00]} Nd3 {[%emt 0:00:00]} 39. Bxb7 {[%emt 0:00:01]} Bg6 {[%emt 0:00:
03]} 40. Bd5+ {[%emt 0:00:02]} Kh7 {[%emt 0:00:03]} 41. Nxg7 {[%emt 0:00:05]}
Kxg7 {[%emt 0:00:00]} 42. Rb3 {[%emt 0:00:01]} Nf4 {[%emt 0:00:03]} 43. Bc4 {
[%emt 0:00:00]} Re1+ {[%emt 0:00:02]} 44. Kf2 {[%emt 0:00:02]} Rc1 {[%emt 0:00:
00]} 45. Bf1 {[%emt 0:00:01]} Rc2+ {[%emt 0:00:00]} 46. Ke1 {[%emt 0:00:05]}
Bf7 {[%emt 0:00:04]} 47. Rb1 {[%emt 0:00:03]} Ba2 {[%emt 0:00:03]} 48. Ra1 {
[%emt 0:00:01]} Nd5 {[%emt 0:00:02]} 49. b5 {[%emt 0:00:04]} Nb4 {[%emt 0:00:
05]} 50. c6 {[%emt 0:00:01]} Be6 {[%emt 0:00:01]} 51. Rb1 {[%emt 0:00:02]} Nxc6
{[%emt 0:00:02]} 52. bxc6 {[%emt 0:00:03]} Rxc6 {[%emt 0:00:02]} 53. Kf2 {
[%emt 0:00:01]} Rc3 {[%emt 0:00:01]} 54. Rb7+ {[%emt 0:00:03]} Kf6 {[%emt 0:00:
00]} 55. Rb6 {[%emt 0:00:00]} Kf5 {[%emt 0:00:04]} 56. Rb5+ {[%emt 0:00:00]}
Kf4 {[%emt 0:00:03]} 57. Rb4+ {[%emt 0:00:00]} Ke5 {[%emt 0:00:00]} 58. Rb5+ {
[%emt 0:00:01]} Kd6 {[%emt 0:00:04]} 59. Rb6+ {[%emt 0:00:01]} Rc6 {[%emt 0:00:
00]} 60. Rxc6+ {[%emt 0:00:09]} Kxc6 {[%emt 0:00:01]} 61. Kg3 {[%emt 0:00:00]}
Kd6 {[%emt 0:00:02]} 1/2-1/2

[Event "RUS-ch Blitz 2021"]
[Site "Sochi"]
[Date "2021.10.11"]
[Round "2.24"]
[White "Maltsevskaya, Aleksandra"]
[Black "Savchenko, Boris"]
[Result "0-1"]
[ECO "B55"]
[WhiteElo "2411"]
[BlackElo "2535"]
[Annotator "ChessBase"]
[PlyCount "76"]
[EventDate "2021.10.11"]
[EventType "blitz"]
[EventCountry "RUS"]
[SourceTitle "playchess.com"]
[Source "ChessBase"]
[SourceQuality "1"]
[TimeControl "180+2"]

1. e4 {[%emt 0:00:00]} c5 {[%emt 0:00:04]} 2. Nf3 {[%emt 0:00:02]} d6 {[%emt 0:
00:02]} 3. d4 {[%emt 0:00:05]} cxd4 {[%emt 0:00:00]} 4. Nxd4 {[%emt 0:00:00]}
Nf6 {[%emt 0:00:05]} 5. f3 {[%emt 0:00:03]} e5 {[%emt 0:00:01]} 6. Nb3 {
[%emt 0:00:05]} a5 {[%emt 0:00:00]} 7. Be3 {[%emt 0:00:14]} a4 {[%emt 0:00:10]}
8. N3d2 {[%emt 0:00:09]} d5 {[%emt 0:00:09]} 9. Bb5+ {[%emt 0:01:14]} Nc6 {
[%emt 0:00:11]} 10. O-O {[%emt 0:00:09]} d4 {[%emt 0:00:07]} 11. Bf2 {[%emt 0:
00:03]} Qb6 {[%emt 0:00:36]} 12. Qe2 {[%emt 0:00:14]} Ra5 {[%emt 0:00:49]} 13.
Bd3 {[%emt 0:01:04]} Qxb2 {[%emt 0:00:14]} 14. Nc4 {[%emt 0:00:04]} Qxa1 {
[%emt 0:00:05]} 15. Nxa5 {[%emt 0:00:00]} Nxa5 {[%emt 0:00:01]} 16. Bb5+ {
[%emt 0:00:02]} Bd7 {[%emt 0:00:09]} 17. Bxd7+ {[%emt 0:00:06]} Nxd7 {[%emt 0:
00:00]} 18. Qb5 {[%emt 0:00:00]} Nc6 {[%emt 0:00:04]} 19. Qxb7 {[%emt 0:00:00]}
Nd8 {[%emt 0:00:02]} 20. Qb5 {[%emt 0:00:01]} Qxa2 {[%emt 0:00:03]} 21. c3 {
[%emt 0:00:07]} Bc5 {[%emt 0:00:00]} 22. cxd4 {[%emt 0:00:02]} exd4 {[%emt 0:
00:03]} 23. Rd1 {[%emt 0:00:02]} Qb3 {[%emt 0:00:00]} 24. Qe2 {[%emt 0:00:02]}
O-O {[%emt 0:00:09]} 25. Nd2 {[%emt 0:00:02]} Qc2 {[%emt 0:00:00]} 26. Qe1 {
[%emt 0:00:00]} d3 {[%emt 0:00:06]} 27. Rc1 {[%emt 0:00:00]} Bxf2+ {[%emt 0:00:
03]} 28. Kxf2 {[%emt 0:00:01]} Qb2 {[%emt 0:00:00]} 29. Rb1 {[%emt 0:00:06]}
Qa2 {[%emt 0:00:00]} 30. Ra1 {[%emt 0:00:03]} Qe6 {[%emt 0:00:05]} 31. Rxa4 {
[%emt 0:00:00]} Nc6 {[%emt 0:00:00]} 32. Qe3 {[%emt 0:00:00]} Nde5 {[%emt 0:00:
00]} 33. h3 {[%emt 0:00:00]} Qf6 {[%emt 0:00:18]} 34. Kg1 {[%emt 0:00:06]} g5 {
[%emt 0:00:00]} 35. Ra3 {[%emt 0:00:03]} h6 {[%emt 0:00:05]} 36. Ra6 {[%emt 0:
00:00]} Qf4 {[%emt 0:00:02]} 37. Qf2 {[%emt 0:00:05]} Rb8 {[%emt 0:00:00]} 38.
g3 {[%emt 0:00:01]} Qxd2 {[%emt 0:00:01]} 0-1

[Event "RUS-ch Blitz 2021"]
[Site "Sochi"]
[Date "2021.10.11"]
[Round "3.2"]
[White "Bologan, Victor"]
[Black "Dreev, Aleksey"]
[Result "0-1"]
[ECO "B12"]
[WhiteElo "2574"]
[BlackElo "2635"]
[Annotator "ChessBase"]
[PlyCount "149"]
[EventDate "2021.10.11"]
[EventType "blitz"]
[EventCountry "RUS"]
[SourceTitle "playchess.com"]
[Source "ChessBase"]
[SourceQuality "1"]
[TimeControl "180+2"]

1. e4 {[%emt 0:00:00]} c6 {[%emt 0:00:00]} 2. d4 {[%emt 0:00:05]} d5 {[%emt 0:
00:01]} 3. e5 {[%emt 0:00:00]} Bf5 {[%emt 0:00:00]} 4. Nf3 {[%emt 0:00:00]} e6
{[%emt 0:00:07]} 5. Be2 {[%emt 0:00:01]} c5 {[%emt 0:00:00]} 6. O-O {[%emt 0:
00:10]} cxd4 {[%emt 0:00:00]} 7. Nxd4 {[%emt 0:00:03]} Ne7 {[%emt 0:00:01]} 8.
c4 {[%emt 0:00:08]} dxc4 {[%emt 0:00:17]} 9. Na3 {[%emt 0:00:08]} Nec6 {
[%emt 0:00:55]} 10. Nxf5 {[%emt 0:00:08]} exf5 {[%emt 0:00:16]} 11. Nxc4 {
[%emt 0:00:09]} Bc5 {[%emt 0:00:13]} 12. Be3 {[%emt 0:00:28]} Bxe3 {[%emt 0:00:
48]} 13. Nd6+ {[%emt 0:00:15]} Kf8 {[%emt 0:00:00]} 14. fxe3 {[%emt 0:00:03]}
Nxe5 {[%emt 0:00:13]} 15. Rxf5 {[%emt 0:00:25]} Nbc6 {[%emt 0:00:03]} 16. Qd5 {
[%emt 0:00:13]} f6 {[%emt 0:00:24]} 17. Raf1 {[%emt 0:00:03]} Qe7 {[%emt 0:00:
05]} 18. Nxb7 {[%emt 0:00:29]} Re8 {[%emt 0:00:11]} 19. Nc5 {[%emt 0:00:05]}
Qf7 {[%emt 0:00:00]} 20. Qd6+ {[%emt 0:00:01]} Qe7 {[%emt 0:00:02]} 21. Qd5 {
[%emt 0:00:18]} Qf7 {[%emt 0:00:02]} 22. Qe4 {[%emt 0:00:04]} Qe7 {[%emt 0:00:
00]} 23. b4 {[%emt 0:00:00]} Kg8 {[%emt 0:00:07]} 24. Bd1 {[%emt 0:00:06]} Kf8
{[%emt 0:00:00]} 25. Bb3 {[%emt 0:00:00]} Nd8 {[%emt 0:00:05]} 26. Rd1 {
[%emt 0:00:00]} g6 {[%emt 0:00:00]} 27. Rff1 {[%emt 0:00:03]} Kg7 {[%emt 0:00:
00]} 28. Rd2 {[%emt 0:00:03]} Rhf8 {[%emt 0:00:05]} 29. Rfd1 {[%emt 0:00:01]}
Nef7 {[%emt 0:00:00]} 30. Qxe7 {[%emt 0:00:10]} Rxe7 {[%emt 0:00:00]} 31. e4 {
[%emt 0:00:00]} Rfe8 {[%emt 0:00:05]} 32. a3 {[%emt 0:00:00]} Nc6 {[%emt 0:00:
00]} 33. Rd7 {[%emt 0:00:07]} Nce5 {[%emt 0:00:00]} 34. Rxe7 {[%emt 0:00:07]}
Rxe7 {[%emt 0:00:00]} 35. Ne6+ {[%emt 0:00:00]} Kh6 {[%emt 0:00:00]} 36. h3 {
[%emt 0:00:00]} Ng5 {[%emt 0:00:00]} 37. Nc5 {[%emt 0:00:00]} Nef7 {[%emt 0:00:
09]} 38. Rd4 {[%emt 0:00:00]} Ne5 {[%emt 0:00:02]} 39. Rd6 {[%emt 0:00:00]} Kg7
{[%emt 0:00:00]} 40. Kf2 {[%emt 0:00:05]} Nef7 {[%emt 0:00:00]} 41. Bxf7 {
[%emt 0:00:01]} Kxf7 {[%emt 0:00:00]} 42. Rd4 {[%emt 0:00:00]} Ne6 {[%emt 0:00:
04]} 43. Nxe6 {[%emt 0:00:00]} Kxe6 {[%emt 0:00:05]} 44. Rd5 {[%emt 0:00:01]}
Rc7 {[%emt 0:00:01]} 45. Ra5 {[%emt 0:00:02]} h5 {[%emt 0:00:00]} 46. h4 {
[%emt 0:00:05]} f5 {[%emt 0:00:02]} 47. exf5+ {[%emt 0:00:00]} gxf5 {[%emt 0:
00:03]} 48. g3 {[%emt 0:00:00]} Rc2+ {[%emt 0:00:00]} 49. Kf3 {[%emt 0:00:03]}
Rc3+ {[%emt 0:00:01]} 50. Kf2 {[%emt 0:00:00]} Rc2+ {[%emt 0:00:03]} 51. Ke3 {
[%emt 0:00:00]} Rc3+ {[%emt 0:00:00]} 52. Kf4 {[%emt 0:00:02]} Rc4+ {[%emt 0:
00:00]} 53. Kf3 {[%emt 0:00:00]} Rc3+ {[%emt 0:00:00]} 54. Kf2 {[%emt 0:00:00]}
Rc2+ {[%emt 0:00:02]} 55. Kf1 {[%emt 0:00:00]} Rc7 {[%emt 0:00:04]} 56. Ke2 {
[%emt 0:00:06]} Rc2+ {[%emt 0:00:00]} 57. Kd3 {[%emt 0:00:02]} Rg2 {[%emt 0:00:
01]} 58. Rxa7 {[%emt 0:00:00]} Rxg3+ {[%emt 0:00:04]} 59. Ke2 {[%emt 0:00:00]}
Rb3 {[%emt 0:00:04]} 60. Ra5 {[%emt 0:00:03]} f4 {[%emt 0:00:03]} 61. Kf2 {
[%emt 0:00:00]} Kf6 {[%emt 0:00:03]} 62. b5 {[%emt 0:00:06]} Ke5 {[%emt 0:00:
00]} 63. a4 {[%emt 0:00:02]} Ke4 {[%emt 0:00:02]} 64. Ra6 {[%emt 0:00:03]} Rb2+
{[%emt 0:00:00]} 65. Ke1 {[%emt 0:00:01]} f3 {[%emt 0:00:04]} 66. Ra8 {[%emt 0:
00:01]} Rb1+ {[%emt 0:00:02]} 67. Kf2 {[%emt 0:00:00]} Rb2+ {[%emt 0:00:01]}
68. Kg3 {[%emt 0:00:03]} Rg2+ {[%emt 0:00:00]} 69. Kh3 {[%emt 0:00:01]} Rg1 {
[%emt 0:00:07]} 70. Re8+ {[%emt 0:00:06]} Kf4 {[%emt 0:00:02]} 71. Rf8+ {
[%emt 0:00:02]} Ke3 {[%emt 0:00:00]} 72. Re8+ {[%emt 0:00:09]} Kf2 {[%emt 0:00:
01]} 73. Kh2 {[%emt 0:00:00]} Rg2+ {[%emt 0:00:03]} 74. Kh1 {[%emt 0:00:02]}
Rg4 {[%emt 0:00:02]} 75. Rh8 {[%emt 0:00:12]} 0-1

[Event "RUS-ch Blitz 2021"]
[Site "Sochi"]
[Date "2021.10.11"]
[Round "3.3"]
[White "Sarana, Alexey"]
[Black "Nesterov, Arseniy"]
[Result "1-0"]
[ECO "D37"]
[WhiteElo "2649"]
[BlackElo "2514"]
[Annotator "ChessBase"]
[PlyCount "67"]
[EventDate "2021.10.11"]
[EventType "blitz"]
[EventCountry "RUS"]
[SourceTitle "playchess.com"]
[Source "ChessBase"]
[SourceQuality "1"]
[TimeControl "180+2"]

1. d4 {[%emt 0:00:00]} d5 {[%emt 0:00:00]} 2. Nf3 {[%emt 0:00:00]} Nf6 {
[%emt 0:00:00]} 3. c4 {[%emt 0:00:06]} e6 {[%emt 0:00:03]} 4. Nc3 {[%emt 0:00:
00]} Nbd7 {[%emt 0:00:00]} 5. Bf4 {[%emt 0:00:04]} dxc4 {[%emt 0:00:00]} 6. e3
{[%emt 0:00:00]} b5 {[%emt 0:00:00]} 7. Nxb5 {[%emt 0:00:00]} Bb4+ {[%emt 0:00:
08]} 8. Nc3 {[%emt 0:00:00]} Nd5 {[%emt 0:00:00]} 9. a3 {[%emt 0:00:11]} Nxc3 {
[%emt 0:00:00]} 10. Qc2 {[%emt 0:00:02]} Bxa3 {[%emt 0:01:09]} 11. Rxa3 {
[%emt 0:00:47]} Nd5 {[%emt 0:00:00]} 12. Bg3 {[%emt 0:00:00]} N7b6 {[%emt 0:00:
34]} 13. Be2 {[%emt 0:00:34]} O-O {[%emt 0:00:09]} 14. O-O {[%emt 0:00:00]} Qe7
{[%emt 0:00:29]} 15. Ne5 {[%emt 0:00:01]} c5 {[%emt 0:00:09]} 16. Nxc4 {
[%emt 0:00:15]} Nxc4 {[%emt 0:00:04]} 17. Qxc4 {[%emt 0:00:01]} cxd4 {[%emt 0:
00:00]} 18. Qxd4 {[%emt 0:00:06]} a6 {[%emt 0:00:30]} 19. Rc1 {[%emt 0:00:21]}
Rd8 {[%emt 0:00:09]} 20. h3 {[%emt 0:00:38]} Bb7 {[%emt 0:00:04]} 21. Qa4 {
[%emt 0:00:03]} h6 {[%emt 0:00:14]} 22. e4 {[%emt 0:00:14]} Nf6 {[%emt 0:00:00]
} 23. Rc7 {[%emt 0:00:00]} Rd7 {[%emt 0:00:02]} 24. Rac3 {[%emt 0:00:14]} Rad8
{[%emt 0:00:03]} 25. Bf3 {[%emt 0:00:08]} e5 {[%emt 0:00:00]} 26. Rxd7 {
[%emt 0:00:01]} Rxd7 {[%emt 0:00:01]} 27. Kh2 {[%emt 0:00:00]} Rd4 {[%emt 0:00:
06]} 28. Qa5 {[%emt 0:00:00]} Nxe4 {[%emt 0:00:02]} 29. Rc7 {[%emt 0:00:00]}
Rd7 {[%emt 0:00:00]} 30. Rxd7 {[%emt 0:00:14]} Qxd7 {[%emt 0:00:00]} 31. Bxe5 {
[%emt 0:00:00]} Ng5 {[%emt 0:00:05]} 32. Bg4 {[%emt 0:00:04]} Qc6 {[%emt 0:00:
00]} 33. Qd8+ {[%emt 0:00:00]} Kh7 {[%emt 0:00:00]} 34. Bf5+ {[%emt 0:00:04]}
1-0

[Event "RUS-ch Blitz 2021"]
[Site "Sochi"]
[Date "2021.10.11"]
[Round "3.4"]
[White "Sjugirov, Sanan"]
[Black "Makarian, Rudik"]
[Result "1-0"]
[ECO "E11"]
[WhiteElo "2663"]
[BlackElo "2470"]
[Annotator "ChessBase"]
[PlyCount "55"]
[EventDate "2021.10.11"]
[EventType "blitz"]
[EventCountry "RUS"]
[SourceTitle "playchess.com"]
[Source "ChessBase"]
[SourceQuality "1"]
[TimeControl "180+2"]

1. d4 {[%emt 0:00:00]} Nf6 {[%emt 0:00:04]} 2. Nf3 {[%emt 0:00:03]} e6 {
[%emt 0:00:07]} 3. c4 {[%emt 0:00:13]} d5 {[%emt 0:00:01]} 4. g3 {[%emt 0:00:
17]} Bb4+ {[%emt 0:00:02]} 5. Bd2 {[%emt 0:00:06]} a5 {[%emt 0:00:00]} 6. a3 {
[%emt 0:00:13]} Be7 {[%emt 0:00:00]} 7. Qc2 {[%emt 0:00:20]} O-O {[%emt 0:00:
10]} 8. Bg2 {[%emt 0:00:00]} c6 {[%emt 0:00:04]} 9. O-O {[%emt 0:00:03]} Nbd7 {
[%emt 0:00:04]} 10. Rc1 {[%emt 0:00:12]} Ne4 {[%emt 0:00:29]} 11. e3 {[%emt 0:
00:14]} Nb6 {[%emt 0:00:17]} 12. c5 {[%emt 0:00:14]} Nd7 {[%emt 0:00:02]} 13.
Nc3 {[%emt 0:00:05]} Nxc3 {[%emt 0:00:22]} 14. Bxc3 {[%emt 0:00:00]} a4 {
[%emt 0:00:00]} 15. b4 {[%emt 0:00:28]} axb3 {[%emt 0:00:00]} 16. Qxb3 {
[%emt 0:00:00]} e5 {[%emt 0:00:28]} 17. Nxe5 {[%emt 0:00:00]} Nxe5 {[%emt 0:00:
06]} 18. dxe5 {[%emt 0:00:00]} Bxc5 {[%emt 0:00:03]} 19. a4 {[%emt 0:00:25]}
Qe7 {[%emt 0:00:00]} 20. a5 {[%emt 0:00:00]} Bf5 {[%emt 0:00:25]} 21. Bd4 {
[%emt 0:00:08]} Bxd4 {[%emt 0:00:38]} 22. exd4 {[%emt 0:00:00]} Ra7 {[%emt 0:
00:00]} 23. a6 {[%emt 0:00:08]} Qc7 {[%emt 0:00:16]} 24. Bxd5 {[%emt 0:00:07]}
Rd8 {[%emt 0:00:00]} 25. Bf3 {[%emt 0:00:02]} Rxd4 {[%emt 0:00:05]} 26. axb7 {
[%emt 0:00:11]} Rxb7 {[%emt 0:00:09]} 27. Ra8+ {[%emt 0:00:00]} Bc8 {[%emt 0:
00:02]} 28. Rxc6 {[%emt 0:00:04]} 1-0

[Event "RUS-ch Blitz 2021"]
[Site "Sochi"]
[Date "2021.10.11"]
[Round "3.5"]
[White "Riazantsev, Alexander"]
[Black "Tsydypov, Zhamsaran"]
[Result "0-1"]
[ECO "D30"]
[WhiteElo "2634"]
[BlackElo "2526"]
[Annotator "ChessBase"]
[PlyCount "76"]
[EventDate "2021.10.11"]
[EventType "blitz"]
[EventCountry "RUS"]
[SourceTitle "playchess.com"]
[Source "ChessBase"]
[SourceQuality "1"]
[TimeControl "180+2"]

1. d4 {[%emt 0:00:00]} Nf6 {[%emt 0:00:00]} 2. Nf3 {[%emt 0:00:00]} e6 {
[%emt 0:00:00]} 3. c4 {[%emt 0:00:00]} d5 {[%emt 0:00:00]} 4. Bg5 {[%emt 0:00:
08]} Nbd7 {[%emt 0:00:23]} 5. e3 {[%emt 0:00:02]} Bb4+ {[%emt 0:00:17]} 6. Nbd2
{[%emt 0:00:13]} h6 {[%emt 0:00:00]} 7. Bh4 {[%emt 0:00:00]} O-O {[%emt 0:00:
17]} 8. a3 {[%emt 0:00:00]} Be7 {[%emt 0:00:10]} 9. Rc1 {[%emt 0:00:00]} dxc4 {
[%emt 0:00:08]} 10. Nxc4 {[%emt 0:00:14]} c5 {[%emt 0:00:11]} 11. Be2 {[%emt 0:
00:04]} b6 {[%emt 0:00:00]} 12. O-O {[%emt 0:00:16]} Bb7 {[%emt 0:00:07]} 13.
h3 {[%emt 0:00:00]} Rc8 {[%emt 0:00:09]} 14. Bg3 {[%emt 0:00:27]} Ne4 {[%emt 0:
00:01]} 15. Bh2 {[%emt 0:00:00]} b5 {[%emt 0:00:35]} 16. Ncd2 {[%emt 0:00:06]}
Nxd2 {[%emt 0:00:12]} 17. Qxd2 {[%emt 0:00:06]} c4 {[%emt 0:00:00]} 18. a4 {
[%emt 0:00:31]} a6 {[%emt 0:00:01]} 19. axb5 {[%emt 0:00:00]} axb5 {[%emt 0:00:
00]} 20. b3 {[%emt 0:00:00]} cxb3 {[%emt 0:00:43]} 21. Bxb5 {[%emt 0:00:00]}
Bxf3 {[%emt 0:00:06]} 22. gxf3 {[%emt 0:00:12]} Rxc1 {[%emt 0:00:19]} 23. Rxc1
{[%emt 0:00:00]} Ba3 {[%emt 0:00:00]} 24. Ba4 {[%emt 0:00:57]} Bxc1 {[%emt 0:
00:00]} 25. Qxc1 {[%emt 0:00:00]} Qb6 {[%emt 0:00:01]} 26. Qb2 {[%emt 0:00:12]}
Nf6 {[%emt 0:00:06]} 27. Qxb3 {[%emt 0:00:02]} Qa5 {[%emt 0:00:02]} 28. Kg2 {
[%emt 0:00:02]} Qg5+ {[%emt 0:00:00]} 29. Bg3 {[%emt 0:00:00]} Nh5 {[%emt 0:00:
10]} 30. h4 {[%emt 0:00:02]} Qg6 {[%emt 0:00:00]} 31. Qc2 {[%emt 0:00:00]} Qf6
{[%emt 0:00:00]} 32. Bd6 {[%emt 0:00:08]} Rd8 {[%emt 0:00:04]} 33. Qc7 {
[%emt 0:00:03]} Ra8 {[%emt 0:00:00]} 34. Bc6 {[%emt 0:00:04]} Qg6+ {[%emt 0:00:
06]} 35. Bg3 {[%emt 0:00:13]} Ra2 {[%emt 0:00:00]} 36. Be4 {[%emt 0:00:07]} f5
{[%emt 0:00:00]} 37. Bd3 {[%emt 0:00:03]} Rd2 {[%emt 0:00:00]} 38. Qc3 {
[%emt 0:00:03]} Qxg3+ {[%emt 0:00:00]} 0-1

[Event "RUS-ch Blitz 2021"]
[Site "Sochi"]
[Date "2021.10.11"]
[Round "3.6"]
[White "Moiseenko, Vadim"]
[Black "Grachev, Boris"]
[Result "1/2-1/2"]
[ECO "A14"]
[WhiteElo "2542"]
[BlackElo "2615"]
[Annotator "ChessBase"]
[PlyCount "78"]
[EventDate "2021.10.11"]
[EventType "blitz"]
[EventCountry "RUS"]
[SourceTitle "playchess.com"]
[Source "ChessBase"]
[SourceQuality "1"]
[TimeControl "180+2"]

1. Nf3 {[%emt 0:00:00]} d5 {[%emt 0:00:00]} 2. c4 {[%emt 0:00:00]} e6 {[%emt 0:
00:05]} 3. g3 {[%emt 0:00:02]} Nf6 {[%emt 0:00:05]} 4. Bg2 {[%emt 0:00:01]} Be7
{[%emt 0:00:00]} 5. O-O {[%emt 0:00:00]} O-O {[%emt 0:00:02]} 6. b3 {[%emt 0:
00:05]} b6 {[%emt 0:00:00]} 7. Bb2 {[%emt 0:00:09]} Bb7 {[%emt 0:00:00]} 8. e3
{[%emt 0:00:00]} c5 {[%emt 0:00:05]} 9. Qe2 {[%emt 0:00:05]} dxc4 {[%emt 0:00:
10]} 10. bxc4 {[%emt 0:00:08]} Nc6 {[%emt 0:00:00]} 11. d3 {[%emt 0:00:04]} a6
{[%emt 0:00:12]} 12. Nc3 {[%emt 0:00:03]} Qc7 {[%emt 0:00:16]} 13. Rfd1 {
[%emt 0:00:00]} Rac8 {[%emt 0:00:06]} 14. Rab1 {[%emt 0:00:00]} Rfd8 {[%emt 0:
00:17]} 15. Ba1 {[%emt 0:00:02]} Ba8 {[%emt 0:00:01]} 16. Rd2 {[%emt 0:00:40]}
h6 {[%emt 0:00:12]} 17. h3 {[%emt 0:00:10]} Na7 {[%emt 0:00:15]} 18. g4 {
[%emt 0:00:21]} Rb8 {[%emt 0:00:21]} 19. Rc1 {[%emt 0:00:39]} Nc6 {[%emt 0:00:
02]} 20. Na4 {[%emt 0:00:06]} Nd7 {[%emt 0:00:03]} 21. d4 {[%emt 0:00:26]} cxd4
{[%emt 0:00:38]} 22. exd4 {[%emt 0:00:00]} b5 {[%emt 0:00:01]} 23. cxb5 {
[%emt 0:00:02]} axb5 {[%emt 0:00:00]} 24. d5 {[%emt 0:00:04]} exd5 {[%emt 0:00:
21]} 25. Nc3 {[%emt 0:00:00]} Nf6 {[%emt 0:00:08]} 26. Nxb5 {[%emt 0:00:00]}
Qa5 {[%emt 0:00:02]} 27. Nbd4 {[%emt 0:00:02]} Nxd4 {[%emt 0:00:14]} 28. Nxd4 {
[%emt 0:00:06]} Bb4 {[%emt 0:00:00]} 29. Rdc2 {[%emt 0:00:04]} Re8 {[%emt 0:00:
07]} 30. Qd3 {[%emt 0:00:00]} Qa3 {[%emt 0:00:06]} 31. Nb3 {[%emt 0:00:20]} Ne4
{[%emt 0:00:05]} 32. Qd4 {[%emt 0:00:08]} Bf8 {[%emt 0:00:00]} 33. Rd1 {
[%emt 0:00:15]} Qb4 {[%emt 0:00:00]} 34. Qd3 {[%emt 0:00:02]} Qb5 {[%emt 0:00:
00]} 35. Qf3 {[%emt 0:00:00]} Ng5 {[%emt 0:00:08]} 36. Qg3 {[%emt 0:00:01]} Qb6
{[%emt 0:00:05]} 37. Nd4 {[%emt 0:00:00]} Ne4 {[%emt 0:00:02]} 38. Qf3 {
[%emt 0:00:08]} Ng5 {[%emt 0:00:00]} 39. Qg3 {[%emt 0:00:03]} Ne4 {[%emt 0:00:
00]} 1/2-1/2